Workbook

Sheet 11.09
A2: МБОУ "СОШ №33" НМР РТ | D2: Отд./корп | E2: 2 неделя | H2: День | I2: 2023-09-11
I3: ,
A4: Раздел | B4: № рец. | C4: Блюдо | D4: Выход, г | E4: Цена | F4: Ккал | G4: Белки | H4: Жиры | I4: Угл-ды
A5: Завтрак
A6: 2 блюдо | B6: 173 | C6: Каша геркулесовая молочная | D6: 200 | F6: 216.00 | G6: 11.23 | H6: 3.86 | I6: 21.00
A7: гор.напиток | B7: 376 | C7: Чай с сахаром, с яблоком | D7: 200 | F7: 36.68 | G7: 0.11 | H7: 0.06 | I7: 8.97
A8: хлеб | C8: Печенье | D8: 30 | F8: 122.10 | G8: 2.22 | H8: 2.82 | I8: 21.93
A9: хлеб | C9: Батон нарезной | D9: 70 | F9: 183.40 | G9: 5.25 | H9: 2.03 | I9: 35.98
D10: =SUM(D6:D9) -> 500 | E10: 37.55 | F10: =SUM(F6:F9) -> 558.18 | G10: =SUM(G6:G9) -> 18.81 | H10: 8.77 | I10: 87.88
A11: Обед
A12: 1 блюдо | B12: 88 | C12: Борщ из свежей капусты с картофелем со сметаной | D12: 200/5 | F12: 191.10 | G12: 5.57 | H12: 8.69 | I12: 18.93
A13: 2 блюдо | C13: Тефтели говяжьи | D13: 90 | F13: 170.42 | G13: 11.62 | H13: 10.37 | I13: 10.10
A14: гарнир | B14: 182 | C14: Каша гречневая рассыпчатая с маслом сливочным | D14: 150/3 | F14: 265.30 | G14: 4.90 | H14: 7.69 | I14: 45.56
A15: напиток | B15: 389 | C15: Сок фруктовый (нектар плодовый) | D15: 200 | F15: 84.80 | G15: 1.00 | H15: 0.00 | I15: 20.20
A16: хлеб | C16: Хлеб пшеничный/ржаной | D16: 30/20 | F16: 120.00 | G16: 3.93 | H16: 0.54 | I16: 24.66
D17: 703 | E17: 77.59 | F17: =SUM(F12:F16) -> 831.62 | G17: =SUM(G12:G16) -> 27.02 | H17: 27.29 | I17: 119.45
C18: бесп питание младшие + допол. питание | D18: =SUM(D10+D17) -> 1203 | E18: 115.14 | F18: =SUM(F10+F17) -> 1389.80 | G18: =SUM(G10+G17) -> 45.83 | H18: 36.06 | I18: 207.33
A20: Горячий завтрак (младшие)
A21: фрукты | C21: Фрукты (яблоки) | D21: 100 | F21: 47.00 | G21: 0.40 | H21: 0.40 | I21: 9.80
A22: 2 блюдо | C22: Тефтели говяжьи | D22: 90 | F22: 170.42 | G22: 11.58 | H22: 10.42 | I22: 11.23
A23: гарнир | B23: 182 | C23: Каша гречневая рассыпчатая с маслом сливочным | D23: 150/3 | F23: 265.30 | G23: 10.34 | H23: 9.49 | I23: 46.41
A24: гор.напиток | B24: 376 | C24: Чай с сахаром, с яблоком | D24: 200 | F24: 36.68 | G24: 0.11 | H24: 0.06 | I24: 8.97
A25: хлеб | C25: Хлеб ржаной | D25: 20 | F25: 39.60 | G25: 1.78 | H25: 0.32 | I25: 10.69
C27: бесплатное питание младшие | D27: 563 | E27: 77.59 | F27: =F21+F22+F23+F24+F25+F26 -> 559.00 | G27: =G21+G22+G23+G24+G25+G26 -> 24.21 | H27: =H21+H22+H23+H24+H25+H26 -> 20.69 | I27: =I21+I22+I23+I24+I25+I26 -> 87.10
A29: Раздел | B29: № рец. | C29: Блюдо | D29: Выход, г | E29: Цена | F29: Ккал | G29: Белки | H29: Жиры | I29: Угл-ды
A30: Старшие
A31: фрукты | C31: Фрукты (яблоки) | D31: 100 | F31: 47.00 | G31: 0.40 | H31: 0.40 | I31: 9.80
A32: 2 блюдо | C32: Котлеты "Столичные" мясо-куриные | D32: 100 | F32: 184.92 | G32: 11.58 | H32: 10.42 | I32: 11.23
A33: гарнир | B33: 303 | C33: Каша гречневая рассыпчатая с маслом сливочным | D33: 180/3 | F33: 312.30 | G33: 10.34 | H33: 9.49 | I33: 46.41
A34: гор.напиток | B34: 376 | C34: Чай с сахаром, с яблоком | D34: 200 | F34: 36.68 | G34: 0.11 | H34: 0.06 | I34: 8.97
A35: хлеб | C35: Хлеб ржаной | D35: 30 | F35: 53.46 | G35: 1.78 | H35: 0.32 | I35: 10.69
C37: питание старшие | D37: 613 | E37: 79.00 | F37: =SUM(F31:F35) -> 634.36 | G37: =SUM(G31:G35) -> 24.21 | H37: 20.69 | I37: 87.10

Sheet 12.09
A2: МБОУ "СОШ №33" НМР РТ | D2: Отд./корп | E2: 2 неделя | H2: День | I2: 2023-09-12
A4: Раздел | B4: № рец. | C4: Блюдо | D4: Выход, г | E4: Цена | F4: Ккал | G4: Белки | H4: Жиры | I4: Угл-ды
A5: Завтрак
A6: хлеб | B6: 1 | C6: Бутерброд с маслом сливочным (30/10) | D6: 40 | F6: 136.00 | G6: 2.36 | H6: 7.49 | I6: 14.89
A7: 2 блюдо | B7: 173 | C7: Каша пшенная молочная | D7: 200 | F7: 243.80 | G7: 11.58 | H7: 9.98 | I7: 28.73
A8: гор.напиток | B8: 376 | C8: Чай с сахаром, с шиповником | D8: 200 | F8: 34.02 | G8: 0.13 | H8: 0.06 | I8: 8.20
A9: хлеб | C9: Батон нарезной | D9: 60 | F9: 157.20 | G9: 4.50 | H9: 1.74 | I9: 30.84
D10: =SUM(D6:D9) -> 500 | E10: 37.55 | F10: =SUM(F6:F9) -> 571.02 | G10: =SUM(G6:G9) -> 18.57 | H10: 19.27 | I10: 82.66
A11: Обед
A13: 1 блюдо | B13: 96 | C13: Рассольник Ленинградский со сметаной | D13: 200/5 | F13: 153.90 | G13: 6.74 | H13: 7.82 | I13: 9.76
A14: 2 блюдо | C14: Жаркое из птицы (бедро) | D14: 50/150 | F14: 393.54 | G14: 15.01 | H14: 17.27 | I14: 51.76
A15: гарнир | B15: 306 | C15: Огурцы свежие порционно | D15: 30 | F15: 4.20 | G15: 0.24 | H15: 0.03 | I15: 0.75
A16: напиток | C16: Напиток из изюма и яблок | D16: 200 | F16: 119.94 | G16: 0.38 | H16: 0.13 | I16: 29.30
A17: хлеб | C17: Хлеб пшеничный/ржаной | D17: 25/30 | F17: 98.35 | G17: 3.22 | H17: 0.44 | I17: 20.22
D18: 700 | E18: 77.59 | F18: =SUM(F12:F17) -> 769.93 | G18: =SUM(G12:G17) -> 25.59 | H18: =SUM(H12:H17) -> 25.69 | I18: =SUM(I12:I17) -> 111.79
C19: бесп питание младшие + допол. питание | D19: =D10+D18 -> 1200 | E19: 115.14 | F19: =SUM(F10+F18) -> 1340.95 | G19: =SUM(G10+G18) -> 44.16 | H19: =SUM(H10+H18) -> 44.96 | I19: =SUM(I10+I18) -> 194.45
A21: Горячий завтрак (младшие)
A23: 2 блюдо | B23: 234 | C23: Жаркое из птицы | D23: 50/150 | F23: 393.54 | G23: 15.01 | H23: 17.27 | I23: 51.76
B24: 312 | C24: Огурцы свежие порционно | D24: 50 | F24: 29.60 | G24: 1.44 | H24: 1.36 | I24: 2.89
A25: гор.напиток | B25: 376 | C25: Чай с сахаром, с шиповником | D25: 200 | F25: 34.02 | G25: 0.13 | H25: 0.02 | I25: 8.20
A26: хлеб | C26: Хлеб ржаной/пшеничный | D26: 20/30 | F26: 110.10 | G26: 3.60 | H26: 0.48 | I26: 22.68
C28: бесплатное питание младшие | D28: 500 | E28: 77.59 | F28: =SUM(F22:F27) -> 567.26 | G28: =SUM(G22:G27) -> 20.18 | H28: 19.13 | I28: 85.53
A30: Раздел | B30: № рец. | C30: Блюдо | D30: Выход, г | E30: Цена | F30: Ккал | G30: Белки | H30: Жиры | I30: Угл-ды
A31: Старшие
A32: хол.закуска | C32: Салат из моркови | D32: 100 | F32: 81.70 | G32: 1.23 | H32: 0.09 | I32: 11.47
A33: 2 блюдо | B33: 234 | C33: Жаркое из птицы | D33: 250 | F33: 491.93 | G33: 18.76 | H33: 21.59 | I33: 64.70
A34: гор.напиток | B34: 376 | C34: Чай с сахаром, с шиповником | D34: 200 | F34: 34.02 | G34: 0.13 | H34: 0.02 | I34: 8.20
A35: хлеб | C35: Хлеб ржаной/пшеничный | D35: 20/20 | F35: 86.60 | G35: 2.84 | H35: 0.40 | I35: 17.76
C38: питание старшие | D38: 590 | E38: 79.00 | F38: =SUM(F32:F36) -> 694.25 | G38: =SUM(G32:G36) -> 22.96 | H38: 22.10 | I38: 102.13

Sheet 13.09
A2: МБОУ "СОШ №33" НМР РТ | D2: Отд./корп | E2: 2 неделя | H2: День | I2: 2023-09-13
A4: Раздел | B4: № рец. | C4: Блюдо | D4: Выход, г | E4: Цена | F4: Ккал | G4: Белки | H4: Жиры | I4: Угл-ды
A5: Завтрак
A6: фрукты | B6: 1 | C6: Фрукты (яблоки) | D6: 100 | F6: 47.00 | G6: 0.40 | H6: 0.40 | I6: 9.80
A7: 2 блюдо | B7: 174 | C7: Каша рисовая молочная (вязкая) с маслом сливочным | D7: 155 | F7: 389.33 | G7: 14.48 | H7: 17.32 | I7: 38.52
A8: гор.напиток | B8: 377 | C8: Чай с сахаром и лимоном | D8: 200 | F8: 34.02 | G8: 0.13 | H8: 0.02 | I8: 8.20
A9: хлеб | C9: Батон нарезной | D9: 45 | F9: 117.90 | G9: 3.38 | H9: 1.31 | I9: 23.13
D10: 500 | E10: 37.55 | F10: =SUM(F6:F9) -> 588.25 | G10: =SUM(G6:G9) -> 18.39 | H10: =SUM(H6:H9) -> 19.05 | I10: =SUM(I6:I9) -> 79.65
A11: Обед
A12: 1 блюдо | B12: 102 | C12: Суп картофельный с горохом | D12: 200 | F12: 248.60 | G12: 9.39 | H12: 15.22 | I12: 13.23
A13: 2 блюдо | B13: 234 | C13: Биточки рыбные | D13: 90 | F13: 64.33 | G13: 5.48 | H13: 9.57 | I13: 4.71
A14: гарнир | B14: 203 | C14: Макароны отварные с маслом сливочным | D14: 153 | F14: 226.10 | G14: 5.78 | H14: 1.28 | I14: 42.96
A15: напиток | B15: 349 | C15: Напиток из сухофруктов | D15: 200 | F15: 132.80 | G15: 0.70 | H15: 0.10 | I15: 32.00
A16: хлеб | C16: Хлеб пшеничный/ржаной | D16: 30/30 | F16: 129.90 | G16: 4.26 | H16: 0.60 | I16: 26.64
D17: 703 | E17: 77.59 | F17: =SUM(F12:F16) -> 801.73 | G17: =SUM(G12:G16) -> 25.61 | H17: =SUM(H12:H16) -> 26.77 | I17: =SUM(I12:I16) -> 119.54
C18: бесп питание младшие + допол. питание | D18: =SUM(D10+D17) -> 1203 | E18: 115.14 | F18: 1389.98 | G18: 44.00 | H18: 45.82 | I18: 199.19
A20: Горячий завтрак (младшие)
A21: хлеб | B21: 1 | C21: Бутерброд с сыром и маслом сливочным (30/15/5) | D21: 50 | F21: 155.00 | G21: 6.27 | H21: 7.86 | I21: 14.83
A22: 2 блюдо | B22: 291 | C22: Биточки рыбные | D22: 90 | F22: 64.33 | G22: 3.48 | H22: 9.57 | I22: 4.71
A23: гарнир | B23: 377 | C23: Макароны отварные с маслом сливочным | D23: 153 | F23: 226.10 | G23: 5.78 | H23: 1.28 | I23: 42.96
A24: гор.напиток | C24: Чай с сахаром и лимоном | D24: 187/8/5 | F24: 34.02 | G24: 0.13 | H24: 0.02 | I24: 8.20
A25: хлеб | C25: Хлеб пшеничный/ржаной | D25: 30/30 | F25: 129.90 | G25: 4.26 | H25: 0.60 | I25: 26.64
C26: бесплатное питание младшие | D26: 553 | E26: 77.59 | F26: =SUM(F21:F25) -> 609.35 | G26: =SUM(G21:G25) -> 19.92 | H26: 19.33 | I26: 97.34
A28: Раздел | B28: № рец. | C28: Блюдо | D28: Выход, г | E28: Цена | F28: Ккал | G28: Белки | H28: Жиры | I28: Угл-ды
A29: Старшие
B30: 1 | C30: Масло сливочное | D30: 10 | F30: 66.00 | G30: 0.08 | H30: 7.25 | I30: 0.13
A31: 2 блюдо | B31: 291 | C31: Биточки рыбные | D31: 100 | F31: 71.48 | G31: 7.20 | H31: 9.53 | I31: 5.24
A32: гарнир | B32: 377 | C32: Макароны отварные с маслом сливочным | D32: 180/3 | F32: 221.94 | G32: 6.64 | H32: 7.60 | I32: 31.78
A33: гор.напиток | C33: Чай с сахаром и лимоном | D33: 187/8/5 | F33: 34.02 | G33: 0.13 | H33: 0.02 | I33: 8.20
A34: хлеб | C34: Хлеб ржаной/пшеничный | D34: 30/30 | F34: 123.96 | G34: 4.06 | H34: 0.56 | I34: 25.45
C36: питание старшие | D36: 553 | E36: 79.00 | F36: =SUM(F30:F34) -> 517.40 | G36: =SUM(G30:G34) -> 18.11 | H36: =SUM(H30:H34) -> 24.96 | I36: =SUM(I30:I34) -> 70.80

Sheet 14.09
A2: МБОУ "СОШ №33" НМР РТ | D2: Отд./корп | E2: 2 неделя | H2: День | I2: 2023-09-14
A4: Раздел | B4: № рец. | C4: Блюдо | D4: Выход, г | E4: Цена | F4: Ккал | G4: Белки | H4: Жиры | I4: Угл-ды
A5: Завтрак
A6: хлеб | B6: 1 | C6: Блины с маслом сливочным | D6: 45/5 | F6: 105.00 | G6: 2.52 | H6: 4.31 | I6: 14.02
A7: 2 блюдо | B7: 173 | C7: Каша пшеничная молочная | D7: 200 | F7: 293.80 | G7: 12.58 | H7: 13.98 | I7: 38.70
A8: гор.напиток | B8: 376 | C8: Чай с сахаром | D8: 200 | F8: 32.00 | G8: 0.07 | H8: 0.02 | I8: 8.00
A9: хлеб | C9: Батон нарезной | D9: 50 | F9: 131.00 | G9: 3.75 | H9: 1.45 | I9: 25.70
D10: 500 | E10: 37.55 | F10: =SUM(F6:F9) -> 561.80 | G10: =SUM(G6:G9) -> 18.92 | H10: =SUM(H6:H9) -> 19.76 | I10: =SUM(I6:I9) -> 86.42
A11: Обед
A12: 1 блюдо | C12: Щи из свежей капусты с картофелем | D12: 200 | F12: 271.80 | G12: 8.61 | H12: 12.96 | I12: 26.32
A13: 2 блюдо | C13: Котлеты Нежные из куриных грудок | D13: 90 | F13: 201.80 | G13: 12.89 | H13: 8.41 | I13: 28.78
A14: гарнир | B14: 128 | C14: Картофельное пюре с маслом сливочным | D14: 150/3 | F14: 147.05 | G14: 1.09 | H14: 6.98 | I14: 10.48
A15: напиток | C15: Кисель | D15: 200 | F15: 103.60 | G15: 0.60 | H15: 0.10 | I15: 30.20
A16: хлеб | C16: Хлеб пшеничный/ржаной | D16: 35/25 | F16: 131.75 | G16: 4.31 | H16: 0.58 | I16: 27.12
D18: 703 | E18: 77.59 | F18: =SUM(F12:F17) -> 856.00 | G18: =SUM(G12:G17) -> 27.50 | H18: =SUM(H12:H17) -> 29.03 | I18: =SUM(I12:I17) -> 122.90
C19: бесп питание младшие + допол. питание | D19: =D10+D18 -> 1203 | E19: =SUM(E10+E18) -> 115.14 | F19: =SUM(F10+F18) -> 1417.80 | G19: =SUM(G10+G18) -> 46.42 | H19: =SUM(H10+H18) -> 48.79 | I19: =SUM(I10+I18) -> 209.32
A21: Горячий завтрак (младшие)
A22: хлеб | B22: 1 | C22: Блины с маслом сливочным | D22: 45/5 | F22: 105.00 | G22: 2.52 | H22: 4.31 | I22: 14.02
A23: 2 блюдо | C23: Котлеты "Нежные" из куриных грудок | D23: 90 | F23: 201.80 | G23: 12.89 | H23: 8.41 | I23: 28.78
A24: гарнир | B24: 128 | C24: Картофельное пюре с маслом сливочным | D24: 153 | F24: 147.05 | G24: 1.09 | H24: 6.98 | I24: 10.48
A25: гор.напиток | B25: 376 | C25: Чай с сахаром | D25: 200 | F25: 32.00 | G25: 0.07 | H25: 0.02 | I25: 8.00
A26: хлеб | C26: Хлеб ржаной/пшеничный | D26: 20/30 | F26: 110.10 | G26: 3.60 | H26: 0.48 | I26: 22.68
C28: бесплатное питание младшие | D28: 543 | E28: 77.59 | F28: =SUM(F22:F26) -> 595.95 | G28: =SUM(G22:G26) -> 20.17 | H28: =SUM(H22:H26) -> 20.20 | I28: =SUM(I22:I26) -> 83.96
A30: Раздел | B30: № рец. | C30: Блюдо | D30: Выход, г | E30: Цена | F30: Ккал | G30: Белки | H30: Жиры | I30: Угл-ды
A31: Старшие
A32: хлеб | C32: Печенье | D32: 30 | F32: 122.10 | G32: 2.22 | H32: 2.82 | I32: 21.93
A33: 2 блюдо | C33: Котлеты "Нежные" из куриных грудок | D33: 100 | F33: 322.00 | G33: 13.22 | H33: 15.14 | I33: 35.32
A34: гарнир | B34: 128 | C34: Картофельное пюре с маслом сливочным | D34: 180/3 | F34: 178.20 | G34: 3.86 | H34: 7.18 | I34: 22.58
A35: гор.напиток | B35: 376 | C35: Чай с сахаром | D35: 200 | F35: 32.00 | G35: 0.07 | H35: 0.02 | I35: 8.00
A36: хлеб | C36: Хлеб ржаной/пшеничный | D36: 20/20 | F36: 86.60 | G36: 2.82 | H36: 0.40 | I36: 17.76
C37: питание старшие | D37: 553 | E37: 79.00 | F37: =SUM(F32:F36) -> 740.90 | G37: =SUM(G32:G36) -> 22.19 | H37: 25.56 | I37: 105.59

Sheet 15.09
A2: МБОУ "СОШ №33" НМР РТ | D2: Отд./корп | E2: 2 неделя | H2: День | I2: 2023-09-15
A4: Раздел | B4: № рец. | C4: Блюдо | D4: Выход, г | E4: Цена | F4: Ккал | G4: Белки | H4: Жиры | I4: Угл-ды
A5: Завтрак
A6: фрукт | C6: Фрукты (яблоки) | D6: 100 | F6: 47.00 | G6: 0.40 | H6: 0.40 | I6: 9.80
A7: 2 блюдо | B7: 223 | C7: Запеканка из творога с повидлом | D7: 120/30 | F7: 367.40 | G7: 15.10 | H7: 14.48 | I7: 36.67
A8: гор.напиток | B8: 382 | C8: Какао с молоком | D8: 200 | F8: 38.60 | G8: 0.08 | H8: 4.54 | I8: 10.61
A9: хлеб | C9: Батон нарезной | D9: 50 | F9: 132.00 | G9: 3.76 | H9: 1.74 | I9: 30.84
D10: 500 | E10: 37.55 | F10: =SUM(F6:F9) -> 585.00 | G10: =SUM(G6:G9) -> 19.34 | H10: =SUM(H6:H9) -> 21.16 | I10: =SUM(I6:I9) -> 87.92
A11: Обед
A12: хол.закуска | C12: Свекла отварная (дольками) | D12: 60 | F12: 24.77 | G12: 0.90 | H12: 0.02 | I12: 5.27
A13: 1 блюдо | B13: 96 | C13: Суп картофельный с вермешелью | D13: 200 | F13: 254.60 | G13: 8.15 | H13: 9.27 | I13: 43.96
A14: 2 блюдо | C14: Плов из куриной грудки 50/150 | D14: 200 | F14: 370.50 | G14: 14.42 | H14: 18.43 | I14: 40.93
A15: напиток | C15: Компот из свежих яблок | D15: 200 | F15: 46.60 | G15: 0.16 | H15: 0.16 | I15: 10.91
A16: хлеб | C16: Хлеб пшеничный/ржаной | D16: 20/20 | F16: 86.60 | G16: 2.82 | H16: 0.40 | I16: 17.76
D18: 700 | E18: 77.59 | F18: =SUM(F12:F17) -> 783.07 | G18: =SUM(G12:G17) -> 26.45 | H18: =SUM(H12:H17) -> 28.28 | I18: =SUM(I12:I17) -> 118.83
C19: бесп питание младшие + допол. питание | D19: =D10+D18 -> 1200 | E19: =SUM(E10+E18) -> 115.14 | F19: =SUM(F10+F18) -> 1368.07 | G19: =SUM(G10+G18) -> 45.79 | H19: =SUM(H10+H18) -> 49.44 | I19: =SUM(I10+I18) -> 206.75
A21: Горячий завтрак (младшие)
A22: Фрукт | C22: Фрукты (яблоки) | D22: 100 | F22: 47.00 | G22: 0.40 | H22: 0.40 | I22: 9.80
A23: 2 блюдо | B23: 223 | C23: Запеканка из творога с повидлом | D23: 120/30 | F23: 367.40 | G23: 15.10 | H23: 14.48 | I23: 36.67
A24: гор.напиток | B24: 382 | C24: Какао с молоком | D24: 200 | F24: 38.60 | G24: 0.08 | H24: 4.54 | I24: 10.61
A25: хлеб | C25: Хлеб ржаной/пшеничный | D25: 20/30 | F25: 110.10 | G25: 3.60 | H25: 0.48 | I25: 22.68
C27: бесплатное питание младшие | D27: 500 | E27: 77.59 | F27: =SUM(F22:F25) -> 563.10 | G27: =SUM(G22:G25) -> 19.18 | H27: =SUM(H22:H25) -> 19.90 | I27: =SUM(I22:I25) -> 79.76
A29: Раздел | B29: № рец. | C29: Блюдо | D29: Выход, г | E29: Цена | F29: Ккал | G29: Белки | H29: Жиры | I29: Угл-ды
A30: Старшие
A31: Фрукт | C31: Фрукты (яблоки) | D31: 100 | F31: 47.00 | G31: 0.40 | H31: 0.40 | I31: 9.80
A32: 2 блюдо | B32: 223 | C32: Запеканка из творога с повидлом | D32: 170/30 | F32: 552.80 | G32: 19.53 | H32: 18.18 | I32: 48.50
A33: гор.напиток | B33: 382 | C33: Какао с молоком | D33: 200 | F33: 38.60 | G33: 0.08 | H33: 4.54 | I33: 10.61
A34: хлеб | C34: Хлеб ржаной/пшеничный | D34: 25/25 | F34: 108.25 | G34: 3.52 | H34: 0.50 | I34: 22.20
C35: питание старшие | D35: 550 | E35: 79.00 | F35: =SUM(F31:F34) -> 746.65 | G35: =SUM(G31:G34) -> 23.53 | H35: =SUM(H31:H34) -> 23.62 | I35: =SUM(I31:I34) -> 91.11

Sheet 16.09
A2: МБОУ "СОШ №33" НМР РТ | D2: Отд./корп | E2: 2 неделя | H2: День | I2: 2023-09-16
A4: Раздел | B4: № рец. | C4: Блюдо | D4: Выход, г | E4: Цена | F4: Ккал | G4: Белки | H4: Жиры | I4: Угл-ды
A5: Старшие
C6: Сыр порциями | D6: 10 | F6: 34.30 | G6: 2.63 | H6: 2.66 | I6: 0.00
A7: 2 блюдо | C7: Курица запеченная | D7: 100 | F7: 207.40 | G7: 13.28 | H7: 15.32 | I7: 0.00
A8: гарнир | C8: Каша пшеничная вязкая с маслом сливочным | D8: 180/3 | F8: 244.44 | G8: 3.36 | H8: 4.82 | I8: 47.98
A9: напиток | C9: Чай с сахаром, с яблоком | D9: 200 | F9: 36.68 | G9: 0.11 | H9: 0.06 | I9: 8.97
A10: хлеб | C10: Хлеб пшеничный/ржаной | D10: 30/30 | F10: 123.96 | G10: 4.06 | H10: 0.56 | I10: 16.45
C12: Итого | D12: 553 | E12: 79.00 | F12: 23.44 | G12: 23.42 | H12: 92.40 | I12: 646.78
